fUSD/lending_fUSD_20240327
["ID","MTS","AMOUNT","RATE_DAILY","PERIOD"]
[320732087,1711539105188,-1944.43,0.00056986,120]
[320732088,1711539105198,-500.0,0.00056986,120]
[320732089,1711539105208,-6097.44,0.00056986,120]
[320732090,1711539105218,-5109.09,0.00056986,120]
[320732091,1711539105231,-545.62,0.00056986,120]
[320732092,1711539105241,-663.4,0.00056986,120]
[320732093,1711539105251,-500.0,0.00056986,120]
[320732094,1711539105264,-500.0,0.00056986,120]
[320732095,1711539105274,-22670.34,0.00056986,120]
[320732096,1711539105284,-2453.89,0.00056986,120]
[320732097,1711539105296,-7956.37,0.00056986,120]
[320732098,1711539105310,-2612.82,0.00056986,120]
[320732099,1711539105319,-1096.81,0.00056986,120]
[320732100,1711539105329,-2520.37,0.00056986,120]
[320732101,1711539105340,-628.48,0.00056986,120]
[320732102,1711539105350,-1032.54,0.00056986,120]
[320732103,1711539105360,-500.0,0.00056986,120]
[320732104,1711539105370,-2884.81,0.00056986,120]
[320732105,1711539105381,-3753.0,0.00056986,120]
[320732106,1711539105391,-5025.57,0.00056986,120]
[320732107,1711539105401,-9397.34,0.00056986,120]
[320732108,1711539105411,-43977.12,0.00056986,120]
[320732109,1711539105421,-500.0,0.00056986,120]
[320732110,1711539105432,-7954.08,0.00056986,120]
[320732111,1711539105442,-500.0,0.00056986,120]
[320732112,1711539105451,-832.53,0.00056986,120]
[320732113,1711539105461,-5423.8,0.00056986,120]
[320732114,1711539105471,-5589.81,0.00056986,120]
[320732115,1711539105483,-3477.52,0.00056986,120]
[320732116,1711539105493,-500.0,0.00056986,120]
[320732117,1711539105503,-3295.4,0.00056986,120]
[320732118,1711539105513,-500.0,0.00056986,120]
[320732119,1711539105523,-79143.13,0.00056986,120]
[320732120,1711539105533,-4233.1,0.00056986,120]
[320732121,1711539105543,-1554.43,0.00056986,120]
[320732122,1711539105553,-500.0,0.00056986,120]
[320732123,1711539105563,-21230.92,0.00056986,120]
[320732124,1711539105573,-1796.45,0.00056986,120]
[320732125,1711539105582,-1488.59,0.00056986,120]
[320732126,1711539105592,-1590.82,0.00056986,120]
[320732127,1711539105602,-4270.02,0.00056986,120]
[320732128,1711539105611,-1416.51,0.00056986,120]
[320732129,1711539105621,-1436.29,0.00056986,120]
[320732130,1711539105631,-500.0,0.00056986,120]
[320732131,1711539105640,-993.72265702,0.00056986,14]
[320732132,1711539105650,-2733.23,0.00056986,120]
[320732133,1711539105659,-4828.26,0.00056986,120]
[320732134,1711539105669,-2699.02,0.00056986,120]
[320732135,1711539105679,-4103.23,0.00056986,120]
[320732136,1711539105689,-794.6,0.00056986,120]
[320732137,1711539105699,-2649.26,0.00056986,120]
[320732138,1711539105709,-500.0,0.00056986,120]
[320732139,1711539105719,-1067.47,0.00056986,120]
[320732140,1711539105732,-3406.52,0.00056986,120]
[320732141,1711539105741,-500.0,0.00056986,120]
[320732142,1711539105754,-1008.05,0.00056986,120]
[320732143,1711539105769,-532.43,0.00056986,120]
[320732144,1711539105780,-497.5,0.00056986,120]
[320732145,1711539105790,-3326.63,0.00056986,120]
[320732146,1711539105799,-949.03,0.00056986,120]
[320732147,1711539105811,-13832.31,0.00056986,120]
[320732148,1711539105822,-500.0,0.00056986,120]
[320732149,1711539105832,-5725.46,0.00056986,120]
[320732150,1711539105842,-1080.08,0.00056986,120]
[320732151,1711539105851,-638.55,0.00056986,120]
[320732152,1711539105861,-532.1,0.00056986,120]
[320732153,1711539105870,-3178.59,0.00056986,120]
[320732154,1711539105880,-868.21,0.00056986,120]
[320732155,1711539105890,-1914.32,0.00056986,120]
[320732156,1711539105900,-5718.22,0.00056986,120]
[320732157,1711539105909,-500.0,0.00056986,120]
[320732158,1711539105919,-1510.54,0.00056986,120]
[320732159,1711539105928,-6090.95,0.00056986,120]
[320732160,1711539105938,-180.92,0.00056986,120]
[320732161,1711539105947,-2368.29,0.00056986,120]
[320732162,1711539105957,-1975.68,0.00056986,120]
[320732163,1711539105967,-2626.24,0.00056986,120]
[320732164,1711539105978,-826.27,0.00056986,120]
[320732165,1711539105988,-5971.8,0.00056986,120]
[320732166,1711539105998,-6306.66,0.00056986,120]
[320732167,1711539106008,-3796.34,0.00056986,120]
[320732168,1711539106017,-3897.67,0.00056986,120]
[320732169,1711539106027,-500.0,0.00056986,120]
[320732170,1711539106036,-2196.71,0.00056986,120]
[320732171,1711539106046,-1053.73,0.00056986,120]
[320732172,1711539106056,-500.0,0.00056986,7]
[320732173,1711539106065,-2509.66,0.00056986,120]
[320732174,1711539106075,-500.0,0.00056986,120]
[320732175,1711539106085,-2090.88,0.00056986,120]
[320732176,1711539106095,-353.60612791,0.00056986,120]
[320732177,1711539106105,-3728.83,0.00056986,120]
[320732178,1711539106115,-14051.88,0.00056986,120]
[320732179,1711539106124,-5336.71,0.00056986,120]
[320732180,1711539106134,-6046.1,0.00056986,120]
[320732181,1711539106144,-1400.16,0.00056986,120]
[320732182,1711539106153,-6749.09,0.00056986,120]
[320732183,1711539106163,-1020.49,0.00056986,120]
[320732184,1711539106173,-3525.02,0.00056986,120]
[320732185,1711539106183,-9670.8,0.00056986,120]
[320732186,1711539106192,-2244.9,0.00056986,120]
[320732187,1711539106202,-4278.93,0.00056986,120]
[320732188,1711539106211,-500.0,0.00056986,120]
[320732189,1711539106221,-5002.55,0.00056986,120]
[320732190,1711539106233,-500.0,0.00056986,120]
[320732191,1711539106242,-500.0,0.00056986,120]
[320732192,1711539106251,-5599.22,0.00056986,120]
[320732193,1711539106262,-1319.68,0.00056986,120]
[320732194,1711539106273,-4145.52,0.00056986,120]
[320732195,1711539106284,-1033.96,0.00056986,120]
[320732196,1711539106293,-8690.1,0.00056986,120]
[320732197,1711539106303,-759.99,0.00056986,120]
[320732198,1711539106313,-3689.75,0.00056986,120]
[320732199,1711539106323,-938.28,0.00056986,120]
[320732200,1711539106334,-3289.32,0.00056986,120]
[320732201,1711539106344,-773.1,0.00056986,120]
[320732202,1711539106355,-8474.88,0.00056986,120]
[320732203,1711539106365,-670.41,0.00056986,120]
[320732204,1711539106375,-684.84,0.00056986,120]
[320732205,1711539106386,-991.15,0.00056986,120]
[320732206,1711539106396,-16950.66,0.00056986,120]
[320732207,1711539106405,-5480.38,0.00056986,120]
[320732208,1711539106416,-3421.26,0.00056986,120]
[320732209,1711539106426,-649.49,0.00056986,120]
[320732210,1711539106436,-1159.66,0.00056986,120]
[320732211,1711539106445,-2172.19,0.00056986,120]
[320732212,1711539106455,-2895.84,0.00056986,120]
[320732213,1711539106464,-20784.38,0.00056986,120]
[320732214,1711539106476,-2732.75,0.00056986,120]
[320732215,1711539106486,-17160.48,0.00056986,120]
[320732216,1711539106495,-4740.83,0.00056986,120]
[320732217,1711539106506,-672.63,0.00056986,120]
[320732218,1711539106515,-886.33,0.00056986,120]
[320732219,1711539106525,-6247.3,0.00056986,120]
[320732220,1711539106535,-5091.09,0.00056986,21]
[320732221,1711539106545,-500.0,0.00056986,120]
[320732222,1711539106555,-584.47,0.00056986,120]
[320732223,1711539106564,-8381.34,0.00056986,120]
[320732224,1711539106574,-4086.57,0.00056986,120]
[320732225,1711539106583,-2273.07,0.00056986,120]
[320732226,1711539106593,-2370.47,0.00056986,120]
[320732227,1711539106602,-19292.32,0.00056986,120]
[320732228,1711539106612,-2960.24,0.00056986,120]
[320732229,1711539106622,-1173.99,0.00056986,120]
[320732230,1711539106632,-500.0,0.00056986,85]
[320732231,1711539106642,-500.0,0.00056986,120]
[320732232,1711539106651,-2202.57,0.00056986,120]
[320732233,1711539106661,-12410.62,0.00056986,120]
[320732234,1711539106670,-3278.85,0.00056986,120]
[320732235,1711539106680,-3354.16,0.00056986,120]
[320732236,1711539106689,-8798.58,0.00056986,120]
[320732237,1711539106698,-876.94,0.00056986,120]
[320732238,1711539106708,-3583.19,0.00056986,120]
[320732239,1711539106718,-895.2,0.00056986,120]
[320732240,1711539106728,-500.0,0.00056986,120]
[320732241,1711539106737,-500.0,0.00056986,120]
[320732242,1711539106746,-500.0,0.00056986,120]
[320732243,1711539106756,-1845.88,0.00056986,120]
[320732244,1711539106766,-937.27,0.00056986,120]
[320732245,1711539106775,-1083.78,0.00056986,120]
[320732246,1711539106785,-3201.11,0.00056986,120]
[320732247,1711539106795,-2638.24,0.00056986,120]
[320732248,1711539106804,-1388.52,0.00056986,120]
[320732249,1711539106814,-4892.27,0.00056986,120]
[320732250,1711539106823,-2480.34,0.00056986,120]
[320732251,1711539106833,-1350.19,0.00056986,120]
[320732252,1711539106842,-3142.36,0.00056986,120]
[320732253,1711539106852,-2180.01,0.00056986,120]
[320732254,1711539106861,-1470.53,0.00056986,120]
[320732255,1711539106871,-500.0,0.00056986,120]
[320732256,1711539106880,-500.0,0.00056986,120]
[320732257,1711539106889,-500.0,0.00056986,120]
[320732258,1711539106899,-505.71,0.00056986,120]
[320732259,1711539106909,-1659.22,0.00056986,120]
[320732260,1711539106919,-8083.93,0.00056986,120]
[320732261,1711539106929,-500.0,0.00056986,120]
[320732262,1711539106938,-2931.63,0.00056986,120]
[320732263,1711539106948,-2901.36,0.00056986,120]
[320732264,1711539106958,-541.86,0.00056986,120]
[320732265,1711539106968,-3516.57,0.00056986,120]
[320732266,1711539106979,-4166.77,0.00056986,120]
[320732267,1711539106989,-10990.32,0.00056986,120]
[320732268,1711539106999,-1139.26,0.00056986,120]
[320732269,1711539107009,-686.73,0.00056986,120]
[320732270,1711539107018,-1716.32,0.00056986,120]
[320732271,1711539107028,-500.0,0.00056986,120]
[320732272,1711539107038,-2230.4,0.00056986,120]
[320732273,1711539107047,-360.8792784,0.00057,58]
[320732274,1711539107056,-250.0,0.00057,120]
[320732275,1711539107067,-2000.0,0.00057,30]
[320732276,1711539107076,-5000.0,0.00057,120]
[320732277,1711539107086,-2920.63029993,0.00057,14]
[320732278,1711539107095,-1000.0,0.00057,3]
[320732279,1711539107105,-153.43825922,0.00057064,120]
[320732280,1711539107114,-150.0,0.00057123,120]
[320732281,1711539107124,-302.0,0.00057128,4]
[320732282,1711539107133,-224.0,0.00057175,30]
[320732283,1711539107143,-171.86475117,0.00057204,120]
[320732284,1711539107152,-190.24451948,0.0005723,120]
[320732285,1711539107162,-158.94982111,0.00057248,120]
[320732286,1711539107173,-151.22191435,0.00057255,120]
[320732287,1711539107185,-2000.0,0.0005726,120]
[320732288,1711539107194,-895.23,0.0005726,120]
[320732289,1711539107203,-575.28,0.0005726,120]
[320732290,1711539107212,-500.0,0.0005726,120]
[320732291,1711539107222,-500.0,0.0005726,120]
[320732292,1711539107231,-500.0,0.0005726,120]
[320732293,1711539107241,-500.0,0.0005726,120]
[320732294,1711539107252,-563.96,0.0005726,120]
[320732295,1711539107265,-500.0,0.0005726,120]
[320732296,1711539107275,-638.18,0.0005726,120]
[320732297,1711539107285,-586.89,0.0005726,120]
[320732298,1711539107295,-500.0,0.0005726,120]
[320732299,1711539107305,-500.0,0.0005726,120]
[320732300,1711539107315,-500.0,0.0005726,120]
[320732301,1711539107325,-976.2,0.0005726,120]
[320732302,1711539107334,-500.0,0.0005726,120]
[320732303,1711539107345,-500.0,0.0005726,120]
[320732304,1711539107354,-531.34,0.0005726,120]
[320732305,1711539107365,-500.0,0.0005726,120]
[320732306,1711539107380,-575.24,0.0005726,120]
[320732307,1711539107390,-500.0,0.0005726,120]
[320732308,1711539107399,-462.58223993,0.0005726,120]
[320732309,1711539107409,-503.38,0.0005726,120]
[320732310,1711539107419,-500.0,0.0005726,120]
[320732311,1711539107430,-544.36,0.0005726,120]
[320732312,1711539107440,-656.62,0.0005726,120]
[320732313,1711539107451,-786.05,0.0005726,120]
[320732314,1711539107462,-1108.32,0.0005726,120]
[320732315,1711539107472,-577.45,0.0005726,120]
[320732316,1711539107481,-443.42,0.0005726,120]
[320732317,1711539107491,-500.0,0.0005726,120]
[320732318,1711539107501,-582.28,0.0005726,120]
[320732319,1711539107511,-216.67,0.0005726,120]
[320732320,1711539107520,-500.0,0.0005726,120]
[320732321,1711539107529,-500.0,0.0005726,120]
[320732322,1711539107539,-500.0,0.0005726,120]
[320732323,1711539107549,-306.68,0.0005726,120]
[320732324,1711539107558,-622.12568073,0.0005726,120]
[320732325,1711539107568,-500.0,0.0005726,120]
[320732326,1711539107578,-500.0,0.0005726,120]
[320732327,1711539107588,-500.0,0.0005726,120]
[320732328,1711539107597,-500.0,0.0005726,120]
[320732329,1711539107607,-406.16,0.0005726,120]
[320732330,1711539107617,-650.65,0.0005726,120]
[320732331,1711539107627,-534.4,0.0005726,120]
[320732332,1711539107636,-666.49,0.0005726,120]
[320732333,1711539107646,-500.0,0.0005726,120]
[320732334,1711539107656,-512.61,0.0005726,120]
[320732335,1711539107666,-233.26,0.0005726,120]
[320732336,1711539107675,-500.0,0.0005726,120]
[320732337,1711539107685,-500.0,0.0005726,120]
[320732338,1711539107695,-500.0,0.0005726,120]
[320732339,1711539107705,-346.31,0.0005726,120]
[320732340,1711539107906,-500.0,0.0005726,120]
[320732341,1711539107916,-610.66,0.0005726,120]
[320732342,1711539107925,-544.48,0.0005726,120]
[320732343,1711539107935,-500.0,0.0005726,120]
[320732344,1711539107944,-500.0,0.0005726,120]
[320732345,1711539107954,-1264.52,0.0005726,120]
[320732346,1711539107964,-500.0,0.0005726,120]
[320732347,1711539107974,-564.14,0.0005726,120]
[320732348,1711539107983,-617.82,0.0005726,120]
[320732349,1711539107993,-832.09,0.0005726,120]
[320732350,1711539108002,-921.37,0.0005726,120]
[320732351,1711539108013,-695.47,0.0005726,120]
[320732352,1711539108023,-1458.74,0.0005726,120]
[320732353,1711539108033,-358.97,0.0005726,120]
[320732354,1711539108043,-1146.87,0.0005726,120]
[320732355,1711539108052,-440.26175783,0.0005726,120]
[320732356,1711539108061,-597.38,0.0005726,120]
[320732357,1711539108071,-2719.96,0.0005726,120]
[320732358,1711539108080,-500.0,0.0005726,120]
[320732359,1711539108090,-1170.95,0.0005726,120]
[320732360,1711539108100,-500.0,0.0005726,120]
[320732361,1711539108109,-1986.6,0.0005726,120]
[320732362,1711539108119,-884.38,0.0005726,120]
[320732363,1711539108129,-1057.95,0.0005726,120]
[320732364,1711539108138,-616.91,0.0005726,120]
[320732365,1711539108147,-533.04,0.0005726,120]
[320732366,1711539108156,-537.22,0.0005726,120]
[320732367,1711539108166,-702.45,0.0005726,120]
[320732368,1711539108176,-5471.51,0.0005726,120]
[320732369,1711539108185,-587.11,0.0005726,120]
[320732370,1711539108194,-500.0,0.0005726,120]
[320732371,1711539108204,-500.0,0.0005726,120]
[320732372,1711539108213,-500.0,0.0005726,120]
[320732373,1711539108223,-2128.3,0.0005726,120]
[320732374,1711539108232,-500.0,0.0005726,120]
[320732375,1711539108242,-500.0,0.0005726,120]
[320732376,1711539108253,-500.0,0.0005726,120]
[320732377,1711539108265,-961.96,0.0005726,120]
[320732378,1711539108274,-792.02,0.0005726,120]
[320732379,1711539108283,-613.31,0.0005726,120]
[320732380,1711539108294,-1258.8,0.0005726,120]
[320732381,1711539108305,-931.2,0.0005726,120]
[320732382,1711539108314,-663.5,0.0005726,120]
[320732383,1711539108324,-500.0,0.0005726,120]
[320732384,1711539108333,-1126.29,0.0005726,120]
[320732385,1711539108343,-905.93,0.0005726,120]
[320732386,1711539108352,-596.37,0.0005726,120]
[320732387,1711539108362,-500.0,0.0005726,120]
[320732388,1711539108371,-1145.15,0.0005726,120]
[320732389,1711539108380,-1047.43,0.0005726,120]
[320732390,1711539108389,-500.0,0.0005726,120]
[320732391,1711539108399,-1079.19,0.0005726,120]
[320732392,1711539108408,-151.0,0.0005726,120]
[320732393,1711539108417,-369.55,0.0005726,120]
[320732394,1711539108427,-500.0,0.0005726,120]
[320732395,1711539108436,-500.0,0.0005726,120]
[320732396,1711539108446,-500.0,0.0005726,120]
[320732397,1711539108455,-1050.1,0.0005726,120]
[320732398,1711539108465,-263.21,0.0005726,120]
[320732399,1711539108475,-668.88,0.0005726,120]
[320732400,1711539108486,-798.22,0.0005726,120]
[320732401,1711539108496,-500.0,0.0005726,120]
[320732402,1711539108506,-500.0,0.0005726,120]
[320732403,1711539108516,-865.88,0.0005726,120]
[320732404,1711539108526,-500.0,0.0005726,120]
[320732405,1711539108536,-500.0,0.0005726,120]
[320732406,1711539108546,-698.77,0.0005726,120]
[320732407,1711539108555,-805.48,0.0005726,120]
[320732408,1711539108565,-895.29,0.0005726,120]
[320732409,1711539108574,-2904.63,0.0005726,120]
[320732410,1711539108584,-500.0,0.0005726,120]
[320732411,1711539108593,-575.0,0.0005726,120]
[320732412,1711539108603,-1059.6,0.0005726,120]
[320732413,1711539108613,-624.76,0.0005726,120]
[320732414,1711539108622,-566.16,0.0005726,120]
[320732415,1711539108632,-500.0,0.0005726,120]
[320732416,1711539108642,-500.0,0.0005726,120]
[320732417,1711539108651,-500.0,0.0005726,120]
[320732418,1711539108661,-596.27,0.0005726,120]
[320732419,1711539108670,-511.44,0.0005726,120]
[320732420,1711539108681,-401.81,0.0005726,120]
[320732421,1711539108690,-670.39,0.0005726,120]
[320732422,1711539108699,-2461.83,0.0005726,120]
[320732423,1711539108709,-500.0,0.0005726,120]
[320732424,1711539108718,-1096.84,0.0005726,120]
[320732425,1711539108728,-730.57,0.0005726,120]
[320732426,1711539108737,-526.24,0.0005726,120]
[320732427,1711539108747,-500.0,0.0005726,120]
[320732428,1711539108756,-813.47,0.0005726,120]
[320732429,1711539108765,-500.0,0.0005726,120]
[320732430,1711539108775,-982.22,0.0005726,120]
[320732431,1711539108784,-2323.15,0.0005726,120]
[320732432,1711539108794,-952.22,0.0005726,120]
[320732433,1711539108804,-1090.65,0.0005726,120]
[320732434,1711539108813,-2118.58,0.0005726,120]
[320732435,1711539108823,-819.74,0.0005726,120]
[320732436,1711539108833,-500.0,0.0005726,120]
[320732437,1711539108843,-500.0,0.0005726,120]
[320732438,1711539108854,-500.0,0.0005726,120]
[320732439,1711539108868,-1006.99,0.0005726,120]
[320732440,1711539108879,-680.58,0.0005726,120]
[320732441,1711539108889,-500.0,0.0005726,120]
[320732442,1711539108899,-2012.56,0.0005726,120]
[320732443,1711539108909,-525.09,0.0005726,120]
[320732444,1711539108918,-1027.05,0.0005726,120]
[320732445,1711539108927,-775.63,0.0005726,120]
[320732446,1711539108938,-909.15,0.0005726,120]
[320732447,1711539108948,-669.48,0.0005726,120]
[320732448,1711539108958,-2014.61,0.0005726,120]
[320732449,1711539108968,-500.0,0.0005726,120]
[320732450,1711539108979,-613.39,0.0005726,30]
[320732451,1711539108989,-500.0,0.0005726,120]
[320732452,1711539108998,-670.15,0.0005726,120]
[320732453,1711539109008,-613.0,0.0005726,120]
[320732454,1711539109017,-500.0,0.0005726,120]
[320732455,1711539109028,-741.01,0.0005726,120]
[320732456,1711539109039,-715.82,0.0005726,120]
[320732457,1711539109049,-693.91,0.0005726,120]
[320732458,1711539109059,-471.64,0.0005726,120]
[320732459,1711539109069,-500.0,0.0005726,120]
[320732460,1711539109079,-1436.63,0.0005726,120]
[320732461,1711539109089,-788.63,0.0005726,120]
[320732462,1711539109098,-354.80018238,0.0005726,120]
[320732463,1711539109108,-500.0,0.0005726,120]
[320732464,1711539109118,-852.33,0.0005726,120]
[320732465,1711539109127,-500.0,0.0005726,120]
[320732466,1711539109137,-608.04,0.0005726,120]
[320732467,1711539109147,-500.0,0.0005726,120]
[320732468,1711539109157,-632.68,0.0005726,120]
[320732469,1711539109167,-500.0,0.0005726,120]
[320732470,1711539109177,-524.62,0.0005726,120]
[320732471,1711539109186,-620.43,0.0005726,120]
[320732472,1711539109196,-818.9,0.0005726,120]
[320732473,1711539109206,-2063.63,0.0005726,120]
[320732474,1711539109215,-1004.28,0.0005726,120]
[320732475,1711539109225,-2011.71,0.0005726,120]
[320732476,1711539109235,-807.51,0.0005726,120]
[320732477,1711539109244,-500.0,0.0005726,120]
[320732478,1711539109254,-644.38,0.0005726,120]
[320732479,1711539109267,-305.42,0.0005726,120]
[320732480,1711539109276,-763.33,0.0005726,120]
[320732481,1711539109286,-755.18,0.0005726,120]
[320732482,1711539109296,-487.81,0.0005726,120]
[320732483,1711539109307,-442.02,0.0005726,120]
[320732484,1711539109317,-842.7,0.0005726,120]
[320732485,1711539109326,-713.05,0.0005726,120]
[320732486,1711539109338,-2308.15,0.0005726,120]
[320732487,1711539109347,-167.44,0.0005726,120]
[320732488,1711539109358,-500.0,0.0005726,120]
[320732489,1711539109368,-395.78,0.0005726,120]
[320732490,1711539109378,-500.0,0.0005726,120]
[320732491,1711539109387,-676.12,0.0005726,120]
[320732492,1711539109398,-849.59,0.0005726,120]
[320732493,1711539109407,-500.0,0.0005726,120]
[320732494,1711539109417,-677.22,0.0005726,120]
[320732495,1711539109427,-500.0,0.0005726,120]
[320732496,1711539109438,-500.0,0.0005726,120]
[320732497,1711539109448,-800.48,0.0005726,120]
[320732498,1711539109458,-988.02,0.0005726,120]
[320732499,1711539109468,-500.0,0.0005726,120]
[320732500,1711539109479,-535.04,0.0005726,120]
[320732501,1711539109489,-930.48,0.0005726,120]
[320732502,1711539109500,-343.27803373,0.0005726,120]
[320732503,1711539109510,-171.17081214,0.0005726,120]
[320732504,1711539109520,-877.53,0.0005726,120]
[320732505,1711539109529,-2082.72,0.0005726,120]
[320732506,1711539109538,-171.56,0.0005726,120]
[320732507,1711539109548,-520.53,0.0005726,120]
[320732508,1711539109558,-537.06,0.0005726,120]
[320732509,1711539109567,-1016.45,0.0005726,120]
[320732510,1711539109577,-525.83,0.0005726,120]
[320732511,1711539109587,-500.0,0.0005726,120]
[320732512,1711539109596,-500.0,0.0005726,120]
[320732513,1711539109606,-491.12,0.0005726,120]
[320732514,1711539109615,-1436.62,0.0005726,120]
[320732515,1711539109625,-2558.6,0.0005726,120]
[320732516,1711539109635,-2044.63,0.0005726,120]
[320732517,1711539109645,-545.88,0.0005726,120]
[320732518,1711539109656,-783.0,0.0005726,120]
[320732519,1711539109666,-3085.25,0.0005726,120]
[320732520,1711539109676,-198.86,0.0005726,120]
[320732521,1711539109685,-839.83,0.0005726,120]
[320732522,1711539109695,-735.26,0.0005726,120]
[320732523,1711539109704,-3173.89,0.0005726,120]
[320732524,1711539109713,-1365.01,0.0005726,120]
[320732525,1711539109723,-1347.96,0.0005726,120]
[320732526,1711539109733,-500.0,0.0005726,120]
[320732527,1711539109743,-5132.44,0.0005726,120]
[320732528,1711539109753,-558.52,0.0005726,120]
[320732529,1711539109763,-7133.78,0.0005726,120]
[320732530,1711539109773,-579.76,0.0005726,120]
[320732531,1711539109782,-500.0,0.0005726,120]
[320732532,1711539109793,-1944.43,0.0005726,120]
[320732533,1711539109802,-500.0,0.0005726,120]
[320732534,1711539109812,-6097.44,0.0005726,120]
[320732535,1711539109822,-5109.09,0.0005726,120]
[320732536,1711539109832,-545.62,0.0005726,120]
[320732537,1711539109841,-663.4,0.0005726,120]
[320732538,1711539109851,-500.0,0.0005726,120]
[320732539,1711539109860,-500.0,0.0005726,120]
[320732540,1711539109871,-22670.34,0.0005726,120]
[320732541,1711539109881,-2453.89,0.0005726,120]
[320732542,1711539109890,-7956.37,0.0005726,120]
[320732543,1711539109900,-2612.82,0.0005726,120]
[320732544,1711539109910,-1096.81,0.0005726,120]
[320732545,1711539109920,-2520.37,0.0005726,120]
[320732546,1711539109931,-628.48,0.0005726,120]
[320732547,1711539109940,-1032.54,0.0005726,120]
[320732548,1711539109949,-500.0,0.0005726,120]
[320732549,1711539109959,-3753.0,0.0005726,120]
[320732550,1711539109969,-2884.81,0.0005726,120]
[320732551,1711539109979,-5025.57,0.0005726,120]
[320732552,1711539109988,-9397.34,0.0005726,120]
[320732553,1711539109998,-43977.12,0.0005726,120]
[320732554,1711539110008,-588.44,0.0005726,120]
[320732555,1711539110017,-7954.08,0.0005726,120]
[320732556,1711539110027,-500.0,0.0005726,120]
[320732557,1711539110036,-832.53,0.0005726,120]
[320732558,1711539110046,-5423.8,0.0005726,120]
[320732559,1711539110056,-5589.81,0.0005726,120]
[320732560,1711539110065,-3477.52,0.0005726,120]
[320732561,1711539110075,-500.0,0.0005726,120]
[320732562,1711539110085,-3295.4,0.0005726,120]
[320732563,1711539110095,-500.0,0.0005726,120]
[320732564,1711539110105,-79143.13,0.0005726,120]
[320732565,1711539110115,-4233.1,0.0005726,120]
[320732566,1711539110124,-1554.43,0.0005726,120]
[320732567,1711539110134,-21230.92,0.0005726,120]
[320732568,1711539110144,-500.0,0.0005726,120]
[320732569,1711539110153,-1796.45,0.0005726,120]
[320732570,1711539110162,-1488.59,0.0005726,120]
[320732571,1711539110172,-1590.82,0.0005726,120]
[320732572,1711539110181,-4270.02,0.0005726,120]
[320732573,1711539110191,-1416.51,0.0005726,120]
[320732574,1711539110200,-1436.29,0.0005726,120]
[320732575,1711539110210,-500.0,0.0005726,120]
[320732576,1711539110219,-2733.23,0.0005726,120]
[320732577,1711539110229,-4828.26,0.0005726,120]
[320732578,1711539110238,-2699.02,0.0005726,120]
[320732579,1711539110248,-794.6,0.0005726,120]
[320732580,1711539110258,-4103.23,0.0005726,120]
[320732581,1711539110272,-2649.26,0.0005726,120]
[320732582,1711539110282,-500.0,0.0005726,120]
[320732583,1711539110292,-3406.52,0.0005726,120]
[320732584,1711539110303,-1067.47,0.0005726,120]
[320732585,1711539110312,-500.0,0.0005726,120]
[320732586,1711539110322,-1008.05,0.0005726,120]